Cogmind - Beta 15 @@@ ROGUE MODE // 2025.08.28 @ 18:49:05 Player: Nighteyes Result: Destroyed by G-34 Mercenary with Small Laser Performance ------------- Evolutions (0) 0 Regions Visited (1) 200 Robots Destroyed (12) 60 Value Destroyed (242) 242 Prototype IDs (0) 0 Alien Tech Used (0) 0 Bonus (0) 0 TOTAL SCORE: 502 Bonus ------- None Cogmind --------- Core Integrity 0/250 Matter 234/300 Energy 100/100 System Corruption 0% Temperature Cool (6) Movement Walking (260) Ox2 Location -10/Materials Parts ------- > --- POWER (1) -------- (None) > --- PROPULSION (2) --- Aluminum Leg > --- UTILITY (2) ------ Improved Heat Sink Large Storage Unit > --- WEAPON (2) ------- Light Assault Rifle Grenade Launcher > --- INVENTORY (15) --- Light Ion Engine Aluminum Leg Improved Flight Unit Faulty Improved Flight Unit Improved Flight Unit Improved Flight Unit EM Pulse Gun Light Assault Rifle Peak State ------------ > --- POWER ------------ Light Ion Engine > --- PROPULSION ------- Aluminum Leg Aluminum Leg > --- UTILITY ---------- Improved Heat Sink Small Storage Unit > --- WEAPON ----------- Light Assault Rifle Light Assault Rifle > --- INVENTORY -------- Light Ion Engine Improved Flight Unit Improved Flight Unit Improved Flight Unit EM Pulse Gun Grenade Launcher [Rating: 10] Favorites ----------- Power Light Ion Engine Engine Light Ion Engine Propulsion Aluminum Leg Leg Aluminum Leg Utility Small Storage Unit Device Improved Heat Sink Storage Small Storage Unit Weapon Light Assault Rifle Ballistic Gun Light Assault Rifle Launcher Grenade Launcher Build | -11 -10 ------- Run | Yrd Mat Slots Evolved . | . . Power . | . . Propulsion . | . . Utility . | . . Weapon . | . . Parts Attached 10 | 6 4 Power 1 | 1 . Engine 1 | 1 . Core . | . . Reactor . | . . Propulsion 3 | 2 1 Treads . | . . Leg 3 | 2 1 Wheel . | . . Hover . | . . Flight . | . . Utility 3 | 1 2 Device 1 | . 1 Storage 2 | 1 1 Processor . | . . Hackware . | . . Protection . | . . Artifact . | . . Weapon 3 | 2 1 Energy Gun . | . . Energy Cannon . | . . Ballistic Gun 2 | 2 . Ballistic Cannon . | . . Launcher 1 | . 1 Special Weapon . | . . Impact Weapon . | . . Slashing Weapon . | . . Piercing Weapon . | . . Special Melee Weapon . | . . Unidentified Prototypes . | . . Parts Lost 2 | . 2 Power 1 | . 1 Propulsion 1 | . 1 Utility . | . . Weapon . | . . Highest Loss Streak 1 | . 1 To Critical Strikes . | . . Average Backups 6 | 3 7 Power . | . 1 Propulsion 3 | 1 4 Utility . | . . Weapon 1 | . 1 Tool/Special . | . . Unused Backups 11 | . 11 Power 1 | . 1 Propulsion 9 | . 9 Utility . | . . Weapon 1 | . 1 Tool/Special . | . . Average Slot Usage (%) 91 | . 91 Engine 11 | . 11 Leg 26 | . 26 Device 9 | . 9 Storage 14 | . 14 Ballistic Gun 26 | . 26 Launcher 1 | . 1 Peak Build Rating 10 | 6 10 Average Rating 7 | 4 8 On Entrance 3 | . 6 Naked Turns . | . . Heaviest Build 26 | 10 26 Greatest Support 20 | 20 20 Greatest Overweight (x) 2 | 2 2 Average Overweight (x) . | . . Largest Inventory Capacity 15 | 8 15 Average Capacity 8 | 7 9 Most Carried 8 | 6 8 Average Carried 6 | 3 7 Final Capacity 15 | 8 15 Final Carried 8 | 6 8 Class Distribution -------------------- 100% | Mutant Dominant Class ---------------- Mutant | -10/Materials Resources | -11 -10 ----------- Run | Yrd Mat Matter Collected 362 | 206 156 Remotely . | . . Salvage Created 392 | . 392 Parts 19 | . 19 Haulers Intercepted . | . . Recyclers Shooed 2 | . 2 Parts Field Recycled . | . . Retrieved Matter . | . . Parts Self-Destructed . | . . Prevented . | . . Kills | -11 -10 ------- Run | Yrd Mat Combat Hostiles Destroyed 8 | . 8 Guns 5 | . 5 AOE 3 | . 3 Classes Destroyed 4 | . 4 Worker 1 | . 1 Recycler 3 | . 3 Swarmer 3 | . 3 Grunt 5 | . 5 Best Kill Streak 5 | . 5 Combat Bots Only 3 | . 3 Max Kills in Single Turn 2 | . 2 Gunslinging . | . . Exploded 2 | . 2 Melee . | . . Uniques/NPCs Destroyed . | . . Combat | -11 -10 -------- Run | Yrd Mat Hostile Shots Fired 84 | . 84 Missed 33 | . 33 Hits 51 | . 51 Projectile 51 | . 51 Damage Taken 645 | . 645 Core 254 | . 254 Absorbed by Shields . | . . Core Remaining (%) 100 | 100 . Volleys Fired 51 | . 51 Largest 2 | . 2 Hottest 40 | . 40 Shots Fired 98 | . 98 Gun 94 | . 94 Cannon . | . . Launcher 4 | . 4 Special . | . . Kinetic 94 | . 94 Thermal . | . . Explosive 4 | . 4 Electromagnetic . | . . Robot Hit Streak 6 | . 6 Robot Miss Streak 4 | . 4 Penetration Max . | . . Secondary Targets . | . . Shots Hit Robots 64 | . 64 Core Hits 27 | . 27 Critical Kills . | . . Critical Parts Destroyed . | . . Critical Strikes . | . . Melee Attacks . | . . Impact . | . . Slashing . | . . Piercing . | . . Sneak Attacks . | . . Combat Hostiles . | . . Follow-up Attacks . | . . Damage Inflicted 709 | . 709 Guns 549 | . 549 Cannons . | . . Explosions 143 | . 143 Melee . | . . Ramming 17 | . 17 Kinetic 549 | . 549 Thermal . | . . Explosive 143 | . 143 Electromagnetic . | . . Impact . | . . Slashing . | . . Piercing . | . . Highest Corruption . | . . Average Corruption . | . . Corruption Purged . | . . Corruption Blocked . | . . Overload Shots . | . . Overflow Damage . | . . Projectiles . | . . Explosions . | . . Melee . | . . Knockbacks . | . . Impact . | . . Kinetic . | . . Secondary . | . . Self-Inflicted Damage 40 | . 40 Shots 2 | . 2 Rammed . | . . Targets Rammed 5 | . 5 Kicked 5 | . 5 Crushed . | . . Highest Temperature 18 | . 18 Average Temperature 9 | . 9 Received Heat Transfer 297 | . 297 Siege Activations . | . . Martial Activations . | . . Shielding Activations . | . . Robots Disrupted . | . . Combat Hostiles . | . . Robots Corrupted . | . . Combat Hostiles . | . . Parts Fried . | . . Impact Corruptions . | . . Robots Melted . | . . Combat Hostiles . | . . Parts Melted . | . . Heat Transferred . | . . Parts Sabotaged . | . . Parts Stolen . | . . Parts Stripped . | . . Power Chain Reactions . | . . Alert | -11 -10 ------- Run | Yrd Mat Maximum Alert Level . | . . Low Security (%) 100 | 100 100 Level 1 . | . . Level 2 . | . . Level 3 . | . . Level 4 . | . . Level 5 . | . . High Security . | . . Max Security . | . . Peak Influence 99 | . 99 Initial . | . . Average 24 | . 28 Influence Increases 268 | . 268 Destroy 0b10 Robot/C 160 | . 160 Destroy 0b10 Robot/NC 20 | . 20 Destroy Leader 30 | . 30 Disable Machine 15 | . 15 Destroy Structure 28 | . 28 Lose Combat Pursuer 15 | . 15 Influence Decreases 210 | . 210 Time Decay 190 | . 190 Lost Part 20 | . 20 Squads Dispatched 2 | . 2 Investigation . | . . Extermination . | . . Reinforcement 2 | . 2 Assault . | . . Garrison . | . . Intercept . | . . Searches Triggered . | . . Construction Impeded . | . . Haulers Reinforced . | . . Active Scanning Responses . | . . Cargo Convoy Interrupts . | . . Stealth | -11 -10 --------- Run | Yrd Mat Distress Signals . | . . Communications Jammed . | . . Distress Signals . | . . Times Spotted 18 | . 18 Peak Tracking Total 3 | . 3 Tactical Retreats 1 | . 1 Traps | -11 -10 ------- Run | Yrd Mat Traps Triggered . | . . Indirectly . | . . Trap Hack Attempts . | . . Triggered . | . . Disarmed . | . . Reprogrammed . | . . Reused . | . . Traps Extracted . | . . Installed . | . . Triggered . | . . Machines | -11 -10 ---------- Run | Yrd Mat Machines Disabled 1 | . 1 Max in Single Turn 1 | . 1 Machines Repaired . | . . Machines Dismantled . | . . Machines Sabotaged . | . . Overloaded Fab Kills . | . . Hacking | -11 -10 --------- Run | Yrd Mat Machines Accessed . | . . Terminals . | . . Fabricators . | . . Repair Stations . | . . Recycling Units . | . . Scanalyzers . | . . Garrison Access . | . . Total Hacks . | . . Successful . | . . Failed . | . . Catastrophic . | . . Database Lockouts . | . . Manual . | . . Terminals . | . . Fabricators . | . . Repair Stations . | . . Recycling Units . | . . Scanalyzers . | . . Garrison Access . | . . Terminal Hacks . | . . Fabricator Hacks . | . . Repair Station Hacks . | . . Recycling Unit Hacks . | . . Scanalyzer . | . . Garrison Access Hacks . | . . Unauthorized Hacks . | . . Terminals . | . . Fabricators . | . . Repair Stations . | . . Recycling Units . | . . Scanalyzers . | . . Garrison Access . | . . Data Cores Recovered . | . . Used . | . . Hacking Detections . | . . Full Trace Events . | . . Feedback Events . | . . Feedback Blocked . | . . Robot Schematics Acquired . | . . Robots Built . | . . Authchips . | . . Time . | . . Total Robot Build Rating . | . . Part Schematics Acquired . | . . Parts Built . | . . Authchips . | . . Time . | . . Total Part Build Rating . | . . Parts Repaired . | . . Time . | . . Parts Recycled . | . . Recycled Matter . | . . Retrieved Matter . | . . Retrieved Components . | . . Parts Scanalyzed . | . . Part Schematics Acquired . | . . Parts Damaged . | . . Bothacking | -11 -10 ------------ Run | Yrd Mat Used RIF Installer . | . . Robots Hacked . | . . Non-combat . | . . Combat . | . . Robot Hacks Applied . | . . Relay Couplers Released . | . . Fabnet Peak Effective % . | . . Robots Rewired . | . . Allies Hacked . | . . Hacks Repelled . | . . Allies | -11 -10 -------- Run | Yrd Mat Total Allies . | . . Largest Group . | . . Highest-Rated Group . | . . Highest-Rated Ally . | . . Total Orders . | . . Ally Attacks . | . . Total Damage . | . . Kills . | . . Allies Corrupted . | . . Allies Melted . | . . Intel | -11 -10 ------- Run | Yrd Mat Active Infowar (turns) . | . . Robot Analysis Total . | . . Derelict Logs Recovered . | . . Drone Launches . | . . Drone Recoveries . | . . Exploration | -11 -10 ------------- Run | Yrd Mat Turns Passed 585 | 82 503 Spaces Moved 293 | 53 240 Core 14 | 14 . Treads . | . . Legs 279 | 39 240 Wheels . | . . Hover . | . . Flight . | . . Fastest Speed 50 | 50 120 Average Speed 132 | 122 134 Slowest Speed 260 | 150 260 Overloaded Moves . | . . Propulsion Burnouts . | . . Robots Hopped . | . . Potential Cave-ins . | . . Cave-ins Triggered . | . . Exploration Rate (%) 24 | 4 45 Regions Visited 1 Branch Regions . Pre-discovered Areas . | . . Known Exits Taken . | . . Unknown Exits Taken 1 | 1 . Scrap Searched . | . . Spaces Dug 4 | . 4 Terrain Destroyed 25 | . 25 Melee . | . . Projectile . | . . AOE 25 | . 25 Terrain Rammed . | . . Walls Destroyed . | . . Machines Disabled . | . . Actions | -11 -10 --------- Run | Yrd Mat Total 411 | 70 341 Wait 26 | . 26 Move 292 | 52 240 Hop . | . . Pick Up 19 | 12 7 Fast Attach . | . . Attach 7 | 6 1 Detach . | . . Swap 5 | . 5 Drop 6 | . 6 Fire 51 | . 51 Melee . | . . Ram . | . . Kick 5 | . 5 Crush . | . . Escape Stasis . | . . Rewire . | . . Trap . | . . Miscellaneous . | . . Route ------- -11/Scrapyard -10/Materials (discovered 1 exit: [*Mat]) History --------- Turn | Location | Event 22 | -11/Scrapyard | Discovered new exit (range 15) 83 | -11/Scrapyard | Entered Materials 293 | -10/Materials | Core integrity fell below 50% 313 | -10/Materials | Build established: Mutant 365 | -10/Materials | Discovered new exit (range 15) 558 | -10/Materials | Core integrity fell below 20% 586 | -10/Materials | Destroyed by G-34 Mercenary with Small Laser Last Messages --------------- Acquired 6 matter. Acquired 2 matter. K-01 Serf collects debris. O-16 Technician: "IFF HANDSHAKE FAILED. SECURING TERMINAL." R-06 Scavenger destroyed. ALERT: Hostiles spotted, dispatching reinforcements to Terminal M006. Dropped Aluminum Leg. K-01 Serf collects debris. Acquired 16 matter. K-01 Serf collects debris. S-10 Pest destroyed. K-01 Serf collects debris. Kicked K-01 Serf out of the way. K-01 Serf destroyed. S-10 Pest destroyed. Dropped Sml. Storage Unit. Lgt. Ion Engine destroyed. The unstable cave ceiling collapses. Hadron Collector disabled. Aluminum Leg destroyed. Map ----- +----------------------------------------------------+ | ????????????????????? ############## | | ???????????????????? ! | | ??????????????????????? T | | ????????????????????????????### | | ??????????????????????????????# # ####### | | ??????????????????????????????##% ## #?????? | | ???????????????????????????????# ## [[]]#?????? | | ???????????????????????????????# ## [[]]#?????? | | ??????????? ?????????????????# #########?????? | | ??????????# #????????????????# #?????????????? | | ??????????# #????????????????# #?????????????? | | ??????????# #????????????????# #?????????????? | | ??????????# #######???######?# #?????????????? | | ??????????# # ! ???# # #?????????????? | | ??????????# # ""??#""" # #?????????????? | | ??????????# # | ""??#"T + #?????????????? | | ??????????# # "???#""" # #?????????????? | | ??????????# # ???# # #?????????????? | | ??????????# # ????# ?# #?????????????# | | ???? ?????# # ????######?# %##########+## | | ???? ?????# # ????????????# | | ???? ?????# # ????????????# k | | ???#+###### ###+############## "" | | ???# o % a ######### "" | | ???# g #???????# "" | | ???# g @ w % #???????# | | #### ###########+############## #???????# | | ######### #??# #???????# "" | | ## # """ """ #??# #???????# "" | | ##* #! """ """ #??# +???????# "" | | = ## """ # """ """ #??# #???????# | | *%! # """ # "T" #??# < #???????? | | ## %! # """ # """ ] #??# #????????##### | | # = # ####### ####??#####????????????? | | ## #????????????????????? | | # [ %# #????????????????????? | | ?# =[ %* / #????????????????????? | | ?+ !! # # ""#????????????????????? | | ?# ]! # # # """#????????????????????? | | ?# # "" + # """#????????????????????? | | + T" #### """#????????????????????? | | # "" #??# #????????????????????? | | ########## #??# #????????????????????? | | ?????????# #??##########????????????????????? | | ?????????########????????????????????????????????? | | | | | | | | | | | +----------------------------------------------------+ Best States ------------- Heat Dissipation 39 Energy Generation 10 Energy Capacity 125 Matter Stores 300 Matter Capacity 300 Sight Range 16 Terrain Scan Density 10 Evasion (%) 55 Item Schematics ----------------- None Robot Schematics ------------------ None Fabricated ------------ Nothing Repaired ---------- Nothing Alien Tech Used ----------------- None Achievements -------------- None Challenges ------------ None Game ------ Seed FireSniperMatterbank Manual? 0 Play Time 00:09:09 Cumulative 3.0 hours Start 2025.08.28 @ 18:39:09 End 2025.08.28 @ 18:49:05 Sessions 1 Manual Loads 0 Difficulty Rogue Special Mode None Game No. 6 Rogue 6 Adventurer 0 Explorer 0 Win Type - Total 0 Types 0/0/0/0/0/0/0/0/0/0 Lore% 0 Gallery% 5 Achievement% 7 Wizard Run 0 Options --------- Layout 0 ASCII 0 Keyboard 0 Movement Numpad Keybinds 0 Fullscreen 1 Font 16/SmallcapsGlow Map View 37x27 Zoom Use 99% Tactical HUD 0 Map Filters NONE Filters NONE Steam 1 RUN: e443af4e-b047-4d45-b1ae-364b95be42c7